bitfinex-derivatives/quotes_SOLF0:USTF0_20250307
["timestamp","ask_amount","ask_price","bid_price","bid_amount"]
[1741306677008,1.9664,141.65,141.51,0.04468565]
[1741306677411,233.02,141.72,141.48,280.80504246]
[1741306677607,47.78504246,141.76,141.48,280.80504246]
[1741306677813,47.78504246,141.8,141.53,47.78504246]
[1741306678213,49.01383432,141.81,141.53,47.78504246]
[1741306678410,234.9864,141.83,141.65,0.04483942]
[1741306678622,1.9664,141.83,141.65,0.04483942]
[1741306678819,233.02,141.9,141.66,1.41183114]
[1741306679020,47.78504246,141.86,141.66,1.41183114]
[1741306679324,47.78504246,141.81,141.66,1.41183114]
[1741306679522,47.78504246,141.76,141.59,1.8945]
[1741306679725,47.78504246,141.71,141.49,1.9086]
[1741306680223,47.78504246,141.66,141.44,1.9228]
[1741306680425,0.04830768,141.61,141.44,3.33682714]
[1741306680621,235.0891,141.65,141.44,3.33682714]
[1741306681017,2.0691,141.65,141.45,1.41392718]
[1741306681225,7.0596,141.65,141.45,1.41392718]
[1741306681418,47.78504246,141.71,141.53,0.05125761]
[1741306681618,47.78504246,141.66,141.53,0.05125761]
[1741306681826,47.78504246,141.66,141.45,1.41392718]
[1741306682027,1.9992,141.75,141.49,47.78504246]
[1741306682319,49.75864246,141.81,141.54,47.78504246]
[1741306682523,49.75864246,141.81,141.55,238.58272829]
[1741306682729,0.05108493,141.69,141.66,0.04498652]
[1741306683120,49.75864246,141.81,141.56,1.41282848]
[1741306683327,47.78504246,141.76,141.56,1.41282848]
[1741306683529,0.05184479,141.69,141.66,0.0519218]
[1741306683924,0.05184479,141.69,141.66,3.5719218]
[1741306684129,1.9736,141.81,141.66,3.5719218]
[1741306684434,47.78504246,141.81,141.66,0.0519218]
[1741306684625,47.78504246,141.76,141.58,233.06]
[1741306684929,47.78504246,141.71,141.56,1.41282848]
[1741306685332,47.78504246,141.66,141.56,1.41282848]
[1741306685524,47.78504246,141.66,141.45,7.0694]
[1741306685718,2.029,141.67,141.46,1.41382723]
[1741306685927,47.78504246,141.76,141.49,47.78504246]
[1741306686125,0.04958634,141.57,141.46,1.41382723]
[1741306686331,47.78504246,141.66,141.46,1.41382723]
[1741306686332,235.069,141.65,141.46,1.41382723]
[1741306686527,47.78504246,141.61,141.46,1.41382723]
[1741306687138,0.04674575,141.55,141.4,1.22989928]
[1741306687319,0.04674575,141.55,141.41,49.19936959]
[1741306687518,2.029,141.65,141.42,2.64384392]
[1741306687725,1.8819,141.75,141.46,47.78504246]
[1741306687925,1.8819,141.75,141.51,47.78504246]
[1741306688125,1.9854,141.77,141.56,47.78504246]
[1741306688327,1.9854,141.77,141.62,0.05404277]
[1741306688631,1.9854,141.77,141.57,1.41272868]
[1741306688832,47.78504246,141.85,141.61,47.78504246]
[1741306689132,1.9701,141.87,141.57,1.41272868]
[1741306689133,47.78504246,141.8,141.57,1.41272868]
[1741306689332,47.78504246,141.75,141.57,1.41272868]
[1741306689631,0.04644081,141.7,141.67,0.05161327]
[1741306690026,47.78504246,141.84,141.67,3.52]
[1741306690240,1.9854,141.86,141.66,47.78504246]
[1741306690426,1.9854,141.86,141.67,4.0565]
[1741306690729,1.22759983,141.93,141.71,47.78504246]
[1741306690931,2.0567,141.98,141.76,47.78504246]
[1741306691129,1.22690735,142.05,141.77,233.06]
[1741306691336,2.0567,142.07,141.81,0.04526896]
[1741306691531,7.04,142.05,141.81,2.03036896]
[1741306691729,2.0567,142.07,141.85,47.78504246]
[1741306692631,2.0567,142.07,141.95,0.0459913]
[1741306692632,0.04813447,141.97,141.95,0.0459913]
[1741306693025,47.78504246,141.99,141.78,2.0714]
[1741306693526,47.78504246,142.04,141.78,2.0714]
[1741306694040,2.0567,142.07,141.8,47.78504246]
[1741306694344,454.29394238,142.08,141.9,0.05130254]
[1741306694637,2.0291,142.13,141.91,232.88]
[1741306694826,2.0291,142.13,141.91,234.8751]
[1741306695023,47.78504246,142.04,141.82,232.88]
[1741306695229,47.78504246,142.04,141.81,1.9787]
[1741306695427,232.88,142.06,141.75,232.88]
[1741306695428,47.78504246,141.99,141.75,232.88]
[1741306695631,0.0455862,141.94,141.78,7.0526]
[1741306695833,47.78504246,141.99,141.75,280.66504246]
[1741306696030,47.78504246,141.94,141.71,1.9951]
[1741306696332,280.56504246,141.94,141.71,1.9951]
[1741306696528,1.9069,141.98,141.72,47.78504246]
[1741306697024,1.9069,141.98,141.84,0.04631575]
[1741306697227,7.0424,142.0,141.84,0.04631575]
[1741306697422,280.56504246,142.09,141.82,47.78504246]
[1741306697636,280.56504246,142.09,141.83,3.8003]
[1741306697931,47.78504246,142.04,141.83,3.8003]
[1741306698331,0.05241917,141.97,141.95,0.05055782]
[1741306698529,0.05241917,141.97,141.83,51.58534246]
[1741306698730,1.9544,142.08,141.83,51.58534246]
[1741306698926,47.78504246,142.05,141.95,0.05135161]
[1741306699132,0.04728215,141.91,141.73,47.78504246]
[1741306699433,47.78504246,142.0,141.72,232.78]
[1741306699632,234.00649655,142.04,141.76,47.78504246]
[1741306699826,281.79153901,142.04,141.76,47.78504246]
[1741306700031,280.56504246,142.04,141.76,47.78504246]
[1741306700236,280.56504246,142.04,141.89,0.04578926]
[1741306700429,232.78,142.04,141.89,0.04578926]
[1741306700635,1.9544,142.08,141.85,232.66]
[1741306700939,1.9544,142.08,141.86,47.78504246]
[1741306701135,49.73944246,142.08,141.85,232.66]
[1741306701441,1.22610764,142.07,141.85,232.66]
[1741306701738,0.04587163,141.98,141.95,0.04565783]
[1741306702137,0.04587163,141.98,141.78,232.66]
[1741306702336,0.04587163,141.98,141.81,47.78504246]
[1741306702641,49.73944246,142.08,141.81,47.78504246]
[1741306702846,49.73944246,142.08,141.82,2.0849]
[1741306703032,7.0388,142.07,141.86,47.78504246]
[1741306703235,1.9544,142.08,141.86,47.78504246]
[1741306703446,1.9544,142.08,141.94,0.05061722]
[1741306703938,1.9544,142.08,141.9,1.9019]
[1741306704636,0.05250307,142.0,141.83,2.0731]
[1741306704841,0.05250307,142.0,141.84,1.9019]
[1741306705043,1.9544,142.08,141.86,47.78504246]
[1741306705441,49.73944246,142.08,141.84,1.9019]
[1741306705637,47.78504246,142.03,141.84,1.9019]
[1741306706149,0.05413469,141.97,141.84,1.9019]
[1741306706335,0.05413469,141.97,141.86,47.78504246]
[1741306706643,0.0484525,141.93,141.92,0.04803051]
[1741306707047,1.9544,142.08,141.92,3.52]
[1741306707242,1.9544,142.08,141.91,0.04558963]
[1741306707435,49.73944246,142.08,141.86,232.58]
[1741306707942,47.78504246,142.06,141.83,2.0658]
[1741306708334,47.78504246,142.01,141.93,2.138e-05]
[1741306708539,47.83533468,141.96,141.72,280.32504246]
[1741306708739,0.05029222,141.96,141.77,47.78504246]
[1741306708944,47.78504246,142.05,141.77,47.78504246]
[1741306709346,21.19,142.06,141.72,280.32504246]
[1741306709545,47.78504246,142.06,141.78,47.78504246]
[1741306709740,0.05002994,141.92,141.9,0.05433552]
[1741306710044,47.78504246,142.06,141.86,232.54]
[1741306710434,47.78504246,142.06,141.8,1.9471]
[1741306710640,47.78504246,142.01,141.79,2.0025]
[1741306710838,47.78504246,141.96,141.73,280.32504246]
[1741306711040,0.05017866,141.91,141.89,0.05246707]
[1741306711444,1.9697,142.0,141.78,47.78504246]
[1741306711652,0.04454042,141.91,141.89,0.05071637]
[1741306712148,0.05415997,141.91,141.74,2.0025]
[1741306712451,232.52,141.96,141.74,2.0025]
[1741306712647,280.30504246,141.96,141.74,2.0025]
[1741306712856,47.78504246,141.91,141.68,1.9471]
[1741306713152,47.78504246,141.91,141.68,50.95948252]
[1741306713344,47.78504246,141.91,141.68,3.17444006]
[1741306713539,7.0525,141.79,141.78,4.211e-05]
[1741306714043,7.0565,141.71,141.64,2.0188]
[1741306714237,2.0549,141.85,141.64,2.0188]
[1741306714852,232.62,141.93,141.73,0.05017551]
[1741306715047,7.0496,141.85,141.73,0.05017551]
[1741306715347,47.78504246,142.0,141.78,47.78504246]
[1741306715550,47.78504246,142.0,141.79,2.0188]
[1741306716240,0.05279477,141.91,141.88,4.934e-05]
[1741306716651,43.74443874,141.94,141.73,45.82183874]
[1741306716852,43.74443874,141.98,141.77,43.74443874]
[1741306717152,43.74443874,142.02,141.81,43.74443874]
[1741306717550,7.046,141.92,141.9,0.04563657]
[1741306717753,0.04950755,141.93,141.9,0.04563657]
[1741306717943,43.74443874,141.98,141.78,1.94]
[1741306718138,43.74443874,142.02,141.81,43.74443874]
[1741306718337,0.05049238,141.93,141.9,0.05186905]
[1741306718746,14.0644,142.2,141.9,3.52]
[1741306718747,1.22634528,142.06,141.9,3.52]
[1741306718950,0.04904528,141.93,141.9,0.04655372]
[1741306719152,7.0397,142.05,141.94,7.045]
[1741306719340,43.74443874,142.11,141.93,43.74443874]
[1741306719543,3.9065,142.14,141.93,43.74443874]
[1741306719744,1.9868,142.14,142.03,7.0402]
[1741306720051,43.74443874,142.19,142.01,276.38443874]
[1741306720251,7.0333,142.18,142.08,7.038]
[1741306720553,1.9473,142.24,142.09,0.0536104]
[1741306720747,7.032,142.21,142.09,0.0536104]
[1741306720954,1.9473,142.24,142.04,43.74443874]
[1741306721144,43.74443874,142.29,142.08,43.74443874]
[1741306721553,43.74443874,142.25,142.04,43.74443874]
[1741306721858,0.04980821,142.18,142.01,276.38443874]
[1741306722044,43.74443874,142.17,141.98,45.67983874]
[1741306722243,43.74443874,142.17,141.98,1.9354]
[1741306722453,45.69173874,142.17,141.98,1.9354]
[1741306722649,1.4068655,142.16,141.98,1.9354]
[1741306722850,1.4068655,142.16,141.98,45.67983874]
[1741306723056,0.04592605,142.08,142.06,0.04879579]
[1741306723247,43.74443874,142.2,142.06,0.04879579]
[1741306723443,43.74443874,142.2,141.98,45.67983874]
[1741306723643,43.74443874,142.12,141.94,276.32443874]
[1741306723858,43.74443874,142.12,141.94,232.58]
[1741306724060,43.74443874,142.2,141.98,43.74443874]
[1741306724250,43.74443874,142.2,142.02,43.74443874]
[1741306724451,43.74443874,142.24,142.08,0.04470178]
[1741306724651,45.64653874,142.27,142.08,0.04470178]
[1741306724863,45.64653874,142.27,142.07,232.5]
[1741306725457,1.9021,142.27,142.07,232.5]
[1741306725762,0.02665391,142.18,142.16,0.04964276]
[1741306726063,0.02665391,142.18,142.07,232.5]
[1741306726064,43.74443874,142.35,142.13,43.74443874]
[1741306726360,1.8871,142.37,142.17,43.74443874]
[1741306726549,43.74443874,142.35,142.15,232.36]
[1741306726854,43.74443874,142.39,142.2,43.74443874]
[1741306727051,43.74443874,142.43,142.2,43.74443874]
[1741306727251,43.74443874,142.43,142.28,0.04559702]
[1741306727459,276.10443874,142.47,142.28,0.04559702]
[1741306727758,1.8871,142.48,142.32,43.74443874]
[1741306727959,59.48864179,142.4,142.32,43.78876832]
[1741306728149,59.48864179,142.4,142.32,50.81486832]
[1741306728348,59.48864179,142.4,142.32,43.74443874]
[1741306728552,59.48864179,142.4,142.28,43.74443874]
[1741306728754,59.48864179,142.4,142.35,0.05383297]
[1741306729858,43.74443874,142.38,142.17,43.74443874]
[1741306730061,43.74443874,142.34,142.17,43.74443874]
[1741306730359,275.92443874,142.34,142.13,43.74443874]
[1741306730555,43.74443874,142.3,142.1,232.18]
[1741306730758,1.40558015,142.29,142.1,232.18]
[1741306731062,0.04800261,142.21,142.18,0.04618885]
[1741306731263,1.40646976,142.2,142.09,2.0318]
[1741306731656,1.40646976,142.2,142.03,232.18]
[1741306731860,1.40646976,142.2,142.01,43.74443874]
[1741306732068,43.74443874,142.18,141.99,2.0318]
[1741306732362,0.05398356,142.12,141.98,2.0737]
[1741306732552,0.05398356,142.12,141.98,3.2986208]
[1741306732753,1.40646976,142.2,142.1,7.037]
[1741306732959,1.40646976,142.2,142.12,43.74443874]
[1741306733359,1.40646976,142.2,142.11,234.062]
[1741306733964,0.04480729,142.17,142.04,43.74443874]
[1741306734159,0.04480729,142.17,142.01,232.16]
[1741306734466,1.40646976,142.2,141.9,43.74443874]
[1741306734467,43.74443874,142.13,141.9,43.74443874]
[1741306734666,43.74443874,142.09,141.91,1.22513642]
[1741306734865,7.0466,141.91,141.82,232.16]
[1741306735161,43.74443874,142.01,141.83,1.22597805]
[1741306735364,0.04650049,141.88,141.85,0.05386562]
[1741306735566,43.74443874,142.01,141.81,43.74443874]
[1741306735764,0.04452319,141.88,141.85,43.74443874]
[1741306736067,43.74443874,142.05,141.85,0.04702529]
[1741306736267,43.74443874,142.01,141.85,0.04702529]
[1741306736560,43.74443874,142.01,141.83,43.74443874]
[1741306736561,43.74443874,142.05,141.84,1.22619404]
[1741306736962,7.0427,141.99,141.88,7.0479]
[1741306737161,0.05090571,141.96,141.93,0.04983759]
[1741306737563,43.74443874,141.94,141.69,43.74443874]
[1741306737768,43.74443874,141.88,141.69,43.74443874]
[1741306738169,43.74443874,141.88,141.69,44.97190867]
[1741306738767,0.05322035,141.8,141.77,0.04860866]
[1741306738970,232.22,141.97,141.77,43.7930474]
[1741306739166,1.40884756,141.96,141.81,43.74443874]
[1741306739770,1.40884756,141.96,141.85,43.74443874]
[1741306740255,276.06443874,142.07,141.89,43.79221946]
[1741306740460,43.74443874,142.03,141.89,0.04778072]
[1741306740770,43.74443874,141.99,141.81,43.74443874]
[1741306740974,43.74443874,142.03,141.81,43.74443874]
[1741306741465,43.74443874,141.99,141.8,2.0179]
[1741306741670,0.04564569,141.93,141.79,1.905]
[1741306741866,43.74443874,141.91,141.72,43.74443874]
[1741306742068,43.74443874,141.87,141.7,1.4114326]
[1741306742272,43.74443874,141.83,141.64,43.74443874]
[1741306742463,232.36,141.84,141.64,1.22766479]
[1741306742664,232.36,141.84,141.66,39.13650216]
[1741306742866,39.13650216,141.77,141.64,1.22766479]
[1741306743071,39.13650216,141.74,141.55,232.36]
[1741306743274,39.13650216,141.77,141.61,39.13650216]
[1741306743474,39.13650216,141.8,141.64,39.13650216]
[1741306743774,39.13650216,141.81,141.67,39.13650216]
[1741306743976,7.0492,141.86,141.7,39.13650216]
[1741306744172,39.13650216,141.9,141.76,39.13650216]
[1741306744377,1.4095426,141.89,141.79,39.13650216]
[1741306744672,1.4095426,141.89,141.81,43.6784187]
[1741306744867,43.6784187,142.06,141.85,43.6784187]
[1741306745171,43.6784187,142.16,141.93,43.6784187]
[1741306745375,45.6136187,142.16,141.93,43.6784187]
[1741306745575,45.6136187,142.16,141.97,43.6784187]
[1741306745968,0.05107763,142.08,142.05,0.0510486]
[1741306746366,3.52,142.08,141.91,43.6784187]
[1741306746669,43.6784187,142.08,141.87,45.5822187]
[1741306746866,43.6784187,142.0,141.79,43.6784187]
[1741306747071,1.9352,141.99,141.79,43.6784187]
[1741306747267,43.6784187,141.96,141.77,2.0382]
[1741306747472,0.04954141,141.9,141.88,0.04953292]
[1741306747868,0.04954141,141.9,141.8,43.6784187]
[1741306748073,0.04954141,141.9,141.88,0.04932314]
[1741306748278,3.52,141.9,141.72,43.6784187]
[1741306748486,43.6784187,141.91,141.72,43.6784187]
[1741306748667,43.6784187,141.87,141.68,47.7570187]
[1741306748867,234.3749,141.86,141.64,44.90571547]
[1741306749068,43.6784187,141.79,141.59,276.1584187]
[1741306749282,43.6784187,141.79,141.56,5.25346305]
[1741306749477,0.04460595,141.7,141.56,2.0404]
[1741306749676,0.04460595,141.7,141.52,276.1584187]
[1741306749869,276.1584187,141.72,141.52,43.6784187]
[1741306750070,276.1584187,141.72,141.48,44.90734074]
[1741306750481,276.1584187,141.72,141.52,43.6784187]
[1741306750679,0.05382613,141.61,141.59,0.04894239]
[1741306751077,43.6784187,141.69,141.48,44.90734074]
[1741306751376,0.04884776,141.61,141.46,4.0253]
[1741306751775,1.8949,141.74,141.52,43.6784187]
[1741306751984,1.8949,141.74,141.56,43.6784187]
[1741306752281,232.62,141.79,141.6,43.6784187]
[1741306752282,276.2984187,141.79,141.6,43.6784187]
[1741306752477,1.9291,141.84,141.64,43.6784187]
[1741306752681,1.41013889,141.83,141.64,43.73163649]
[1741306752877,1.41013889,141.83,141.64,43.6784187]
[1741306753085,1.41013889,141.83,141.68,43.6784187]
[1741306753680,1.41013889,141.83,141.64,43.6784187]
[1741306753874,1.41013889,141.83,141.74,0.04887451]
[1741306754075,0.0505043,141.77,141.74,0.04887451]
[1741306754277,276.3784187,141.82,141.61,1.896]
[1741306754484,0.0448793,141.77,141.58,43.6784187]
[1741306754678,43.6784187,141.74,141.45,3.84]
[1741306754883,15.36475236,141.76,141.52,43.6784187]
[1741306755085,45.08935344,141.75,141.53,1.8832]
[1741306755489,43.6784187,141.71,141.53,1.8832]
[1741306755673,1.41093474,141.75,141.53,1.8832]
[1741306755674,1.41093474,141.75,141.56,43.6784187]
[1741306755872,0.05172764,141.65,141.63,0.0536043]
[1741306756181,1.41093474,141.75,141.57,1.896]
[1741306756579,1.41093474,141.75,141.58,232.8]
[1741306756780,45.08935344,141.75,141.57,1.896]
[1741306756982,43.6784187,141.71,141.53,1.8832]
[1741306757288,43.72376112,141.63,141.46,2.0529]
[1741306757788,232.8,141.65,141.46,45.7313187]
[1741306757985,1.9788,141.69,141.5,43.6784187]
[1741306758179,43.6784187,141.67,141.46,45.7313187]
[1741306758381,1.41183114,141.66,141.48,43.6784187]
[1741306758585,0.04501107,141.58,141.55,0.04562943]
[1741306758978,43.6784187,141.64,141.45,2.0529]
[1741306759180,0.04740857,141.58,141.43,1.8846]
[1741306759384,43.6784187,141.56,141.38,1.22992101]
[1741306759686,276.5784187,141.6,141.4,43.6784187]
[1741306759886,43.6784187,141.64,141.44,43.6784187]
[1741306760081,43.6784187,141.6,141.4,43.6784187]
[1741306760281,43.6784187,141.6,141.37,1.9342]
[1741306760482,0.05104411,141.51,141.49,0.04622301]
[1741306760882,43.6784187,141.64,141.41,43.6784187]
[1741306761082,0.05400135,141.51,141.49,0.05069377]
[1741306761278,43.6784187,141.52,141.35,1.8779]
[1741306761487,43.6784187,141.52,141.33,1.2302906]
[1741306761789,43.6784187,141.48,141.29,2.029]
[1741306761980,43.6784187,141.48,141.29,3.25998691]
[1741306762379,43.6784187,141.44,141.24,276.5784187]
[1741306762583,0.04861845,141.4,141.24,43.6784187]
[1741306762782,43.6784187,141.4,141.21,45.7074187]
[1741306762978,3.38692719,141.39,141.16,276.7384187]
[1741306763183,43.6784187,141.36,141.17,43.6784187]
[1741306763383,1.41492748,141.35,141.17,43.6784187]
[1741306763890,0.05425754,141.27,141.16,43.6784187]
[1741306764088,0.05425754,141.27,141.2,43.6784187]
[1741306764283,1.41492748,141.35,141.2,43.6784187]
[1741306764490,233.06,141.42,141.21,3.946]
[1741306764685,1.41432713,141.41,141.21,47.6244187]
[1741306764891,43.6784187,141.38,141.21,3.946]
[1741306765083,1.41472731,141.37,141.21,3.946]
[1741306765283,0.04732087,141.32,141.3,0.04456524]
[1741306765489,276.8584187,141.49,141.3,43.72298394]
[1741306765993,276.8584187,141.49,141.3,43.6784187]
[1741306766190,43.6784187,141.45,141.22,1.9716]
[1741306766392,43.6784187,141.41,141.22,45.6500187]
[1741306766587,43.6784187,141.41,141.22,1.9716]
[1741306766885,0.04980404,141.35,141.21,3.946]
[1741306767092,0.04980404,141.35,141.16,1.23140072]
[1741306767292,43.6784187,141.33,141.15,43.6784187]
[1741306767592,233.18,141.38,141.19,43.6784187]
[1741306768089,233.18,141.38,141.15,5.8998]
[1741306768090,45.09314601,141.37,141.15,49.5782187]
[1741306768285,0.04526338,141.3,141.15,1.8866]
[1741306768491,45.09394704,141.29,141.13,1.23216372]
[1741306768690,43.6784187,141.25,141.06,43.6784187]
[1741306768888,43.6784187,141.25,141.02,43.6784187]
[1741306769089,43.6784187,141.21,140.99,1.8866]
[1741306769290,43.6784187,141.17,140.99,1.8866]
[1741306769588,0.05302545,141.11,141.09,0.04579594]
[1741306769891,0.05302545,141.11,140.99,1.8866]
[1741306770091,43.6784187,141.17,140.99,1.8866]
[1741306770294,2.0122,141.16,140.99,1.8866]
[1741306770593,2.0122,141.16,140.99,45.5650187]
[1741306770895,0.05177356,141.09,141.06,0.04674177]
[1741306771392,3.537,141.2,140.99,1.8866]
[1741306771393,3.537,141.2,141.01,7.0913]
[1741306771598,0.05257813,141.09,141.06,0.04569497]
[1741306772098,233.52,141.15,140.99,45.5650187]
[1741306772293,0.04982552,141.09,141.06,0.04592803]
[1741306772484,0.04982552,141.09,140.99,45.5650187]
[1741306772688,0.04982552,141.09,141.06,0.04666489]
[1741306772882,2.0122,141.2,141.06,0.04666489]
[1741306773085,3.726e-05,141.09,141.06,233.52]
[1741306773389,277.1984187,141.29,141.12,0.04789107]
[1741306773788,277.1984187,141.29,141.06,277.1984187]
[1741306773995,277.1984187,141.29,141.1,43.6784187]
[1741306774191,277.1984187,141.29,141.11,3.9609]
[1741306774384,43.6784187,141.33,141.11,3.9609]
[1741306774583,4.0317,141.36,141.18,43.72667597]
[1741306774584,2.0676,141.36,141.18,43.72667597]
[1741306774788,0.05211087,141.21,141.18,43.72667597]
[1741306775090,43.6784187,141.41,141.18,47.2184187]
[1741306775286,43.6784187,141.37,141.17,233.6]
[1741306775484,7.0791,141.26,141.13,7.0852]
[1741306775793,43.6784187,141.32,141.12,45.6948187]
[1741306776191,0.05455391,141.21,141.19,0.05083531]
[1741306776491,0.05455391,141.21,141.05,43.6784187]
[1741306776683,0.05455391,141.21,141.06,2.0399]
[1741306776887,45.09404723,141.28,141.09,43.6784187]
[1741306777087,7.0796,141.25,141.11,7.0861]
[1741306777391,1.41562853,141.28,141.17,43.6784187]
[1741306777588,43.6784187,141.36,141.18,2.0399]
[1741306777993,1.41492748,141.35,141.18,2.0399]
[1741306778194,43.6784187,141.24,141.1,2.0736]
[1741306778591,39.46056344,141.19,141.05,41.50046344]
[1741306778792,39.46056344,141.22,141.05,41.50046344]
[1741306779090,1.41612971,141.23,141.11,39.46056344]
[1741306779290,1.41612971,141.23,141.14,39.46056344]
[1741306779492,39.46056344,141.34,141.2,39.46056344]
[1741306779696,273.10056344,141.4,141.23,39.46056344]
[1741306779898,39.46056344,141.37,141.19,39.46056344]
[1741306780199,39.46056344,141.37,141.2,1.9156]
[1741306780391,40.87509063,141.39,141.23,39.46056344]
[1741306780697,0.04911772,141.29,141.27,0.04539353]
[1741306780896,39.46056344,141.28,141.05,273.14056344]
[1741306781093,39.46056344,141.22,141.08,39.46056344]
[1741306781295,39.46056344,141.25,141.11,39.46056344]
[1741306781499,244.05721715,141.37,141.17,39.46056344]
[1741306781808,7.0783,141.28,141.17,39.46056344]
[1741306781996,39.46056344,141.35,141.2,39.46056344]
[1741306782191,0.04969171,141.28,141.26,0.05026362]
[1741306782399,0.04969171,141.28,141.17,39.46056344]
[1741306782595,1.41462724,141.38,141.2,39.46056344]
[1741306782795,7.0779,141.29,141.2,39.46056344]
[1741306782996,39.46056344,141.28,141.17,1.9558]
[1741306783204,39.46056344,141.25,141.11,39.46056344]
[1741306783399,39.46056344,141.25,141.09,233.66]
[1741306783698,0.05234755,141.19,141.17,0.04906502]
[1741306783902,1.41572874,141.27,141.17,39.50962846]
[1741306784109,1.5318,141.45,141.24,39.46056344]
[1741306784294,39.46056344,141.42,141.27,39.46056344]
[1741306784695,39.46056344,141.45,141.3,39.46056344]
[1741306784900,7.0741,141.36,141.26,39.46056344]
[1741306785095,0.0461036,141.39,141.36,0.0486802]
[1741306785401,39.46056344,141.48,141.33,39.46056344]
[1741306785602,39.46056344,141.42,141.28,39.46056344]
[1741306785794,273.12056344,141.47,141.27,1.9831]
[1741306786007,273.12056344,141.47,141.25,39.46056344]
[1741306786008,39.46056344,141.39,141.22,39.46056344]
[1741306786303,39.46056344,141.38,141.22,39.46056344]
[1741306786606,7.0769,141.3,141.29,7.157e-05]
[1741306786803,46.53746344,141.3,141.29,7.157e-05]
[1741306787103,7.0809,141.23,141.14,233.66]
[1741306787406,39.46056344,141.24,141.11,39.46056344]
[1741306787601,39.46056344,141.24,141.08,39.46056344]
[1741306787805,0.04738607,141.19,141.16,0.05332698]
[1741306788200,39.46056344,141.25,141.11,39.46056344]
[1741306788409,0.05097668,141.19,141.16,0.05117717]
[1741306788801,1.8886,141.32,141.16,43.00056344]
[1741306789002,1.8886,141.32,141.16,39.46056344]
[1741306789209,39.46056344,141.35,141.19,39.46056344]
[1741306789506,39.46056344,141.29,141.16,233.66]
[1741306790005,0.04644111,141.24,141.21,0.05174204]
[1741306790207,39.46056344,141.23,141.08,275.02016344]
[1741306790401,39.46056344,141.25,141.11,39.46056344]
[1741306790601,39.46056344,141.28,141.08,235.5596]
[1741306790801,4.0896,141.32,141.15,39.46056344]
[1741306790802,39.46056344,141.31,141.15,39.46056344]
[1741306791000,39.46056344,141.34,141.18,39.46056344]
[1741306791201,12.48321715,141.44,141.05,7.0891]
[1741306791202,7.084,141.16,141.05,7.0891]
[1741306791400,39.46056344,141.2,141.04,40.69240004]
[1741306791600,0.04735879,141.24,141.06,39.46056344]
[1741306791803,39.46056344,141.22,141.05,1.9058]
[1741306792109,39.46056344,141.19,141.05,3.873]
[1741306792711,39.46056344,141.16,141.05,3.873]
[1741306792902,0.05300647,141.13,141.11,0.05431573]
[1741306793298,39.46056344,141.17,141.05,3.873]
[1741306793507,0.04987471,141.13,141.11,0.05081038]
[1741306793710,0.04987471,141.13,141.11,1.038e-05]
[1741306793907,7.086,141.12,141.11,1.038e-05]
[1741306794706,10.626,141.12,141.11,1.038e-05]
[1741306794907,7.086,141.12,141.11,1.038e-05]
[1741306795104,10.626,141.12,141.11,1.038e-05]
[1741306795417,7.086,141.12,141.11,1.038e-05]
[1741306795615,0.04987471,141.13,141.11,1.038e-05]
[1741306796221,7.086,141.12,141.11,1.038e-05]
[1741306796920,10.626,141.12,141.11,1.038e-05]
[1741306797417,50.08656344,141.12,141.11,1.038e-05]
[1741306797615,43.00056344,141.12,140.97,1.9778]
[1741306797807,39.46056344,141.08,140.97,1.9778]
[1741306798207,40.87789743,141.11,140.97,1.9778]
[1741306798412,39.46056344,141.08,140.97,1.9778]
[1741306798609,1.41733399,141.11,140.97,1.9778]
[1741306798610,39.46056344,141.05,140.97,1.9778]
[1741306798809,39.46056344,141.02,140.8,233.88]
[1741306799019,39.46056344,140.99,140.85,4.2393]
[1741306799218,39.46056344,140.99,140.87,7.0985]
[1741306799419,1.41833912,141.01,140.89,39.46056344]
[1741306799623,39.46056344,141.07,140.92,39.46056344]
[1741306799821,39.46056344,141.01,140.86,1.23467741]
[1741306800018,39.50728415,141.01,140.98,0.05144357]
[1741306800218,39.46056344,141.01,140.85,4.2393]
[1741306800418,39.46056344,140.97,140.85,4.2393]
[1741306800624,39.46056344,141.05,140.86,39.46056344]
[1741306800811,39.46056344,141.05,140.9,39.46056344]
[1741306801015,39.46056344,141.05,140.92,39.46056344]
[1741306801213,1.41773587,141.07,140.95,39.46056344]
[1741306801426,1.41773587,141.07,140.98,39.46056344]
[1741306801623,39.46056344,141.13,140.99,2.0195]
[1741306801923,39.46056344,141.07,140.96,2.0924]
[1741306802127,39.46056344,140.98,140.83,233.96]
[1741306802314,39.46056344,140.98,140.85,2.0924]
[1741306802719,7.14535093,140.92,140.9,0.04657628]
[1741306802919,39.50981437,140.92,140.85,2.0924]
[1741306803119,39.46056344,140.88,140.72,39.46056344]